bitfinex/quotes_SOLUSD_20251206
["timestamp","ask_amount","ask_price","bid_price","bid_amount"]
[1765036600394,4.01136856,133.05,133.04,8.26]
[1765036602385,5.86329384,133.05,133.04,8.26]
[1765036611335,116.37926527,133.05,133.04,8.26]
[1765036615035,13.37926527,133.05,133.04,8.26]
[1765036623361,22.18921019,133.05,133.04,8.26]
[1765036626076,13.37926527,133.05,133.04,8.26]
[1765036626938,5.86329384,133.05,133.04,8.26]
[1765036630249,13.37926527,133.05,133.04,8.26]
[1765036635142,22.18921019,133.05,133.04,8.26]
[1765036637671,22.18921019,133.05,133.03,20.0]
[1765036637855,21.46921019,133.05,133.04,8.26]
[1765036638373,22.12921019,133.05,133.04,8.26]
[1765036640066,13.31926527,133.05,133.04,8.26]
[1765036643196,22.12921019,133.05,133.04,8.26]
[1765036645904,13.31926527,133.05,133.04,8.26]
[1765036658518,5.14329384,133.06,133.04,8.77]
[1765036658878,5.14329384,133.07,133.05,0.51]
[1765036659081,0.66,133.08,133.06,8.26]
[1765036659313,5.14329384,133.07,133.06,8.26]
[1765036659491,5.14329384,133.07,133.06,8.77]
[1765036659887,5.14329384,133.07,133.06,8.26]
[1765036662607,108.14329384,133.07,133.06,8.26]
[1765036664493,106.29123561,133.07,133.06,8.26]
[1765036677224,106.96123561,133.07,133.06,8.26]
[1765036677525,106.29123561,133.07,133.06,8.26]
[1765036685826,106.29123561,133.07,133.06,8.77]
[1765036686132,106.29123561,133.07,133.06,8.26]
[1765036688952,3.29123561,133.07,133.06,8.77]
[1765036689351,3.29123561,133.07,133.06,8.26]
[1765036692554,0.66,133.08,133.06,8.26]
[1765036692757,3.29123561,133.07,133.06,8.26]
[1765036696363,0.66,133.08,133.06,8.26]
[1765036696572,3.95123561,133.08,133.06,8.26]
[1765036698270,0.66,133.08,133.06,8.26]
[1765036698568,3.95123561,133.08,133.06,8.26]
[1765036701871,3.29123561,133.07,133.06,8.26]
[1765036706353,3.95123561,133.07,133.06,8.26]
[1765036706875,3.95123561,133.07,133.05,7.51591292]
[1765036707061,3.95123561,133.07,133.06,8.26]
[1765036707876,3.29123561,133.07,133.06,8.26]
[1765036709172,3.29123561,133.08,133.06,8.26]
[1765036709371,3.95123561,133.08,133.06,8.26]
[1765036711477,3.29123561,133.07,133.06,8.26]
[1765036713574,3.29123561,133.07,133.05,0.51]
[1765036713782,3.29123561,133.07,133.06,8.26]
[1765036714862,3.95123561,133.08,133.06,8.26]
[1765036716882,3.95123561,133.08,133.05,8.02584781]
[1765036717069,3.95123561,133.08,133.06,8.26]
[1765036718582,3.95123561,133.08,133.06,8.77]
[1765036719085,3.95123561,133.08,133.06,8.26]
[1765036719986,3.95123561,133.08,133.07,8.26]
[1765036722689,0.66,133.08,133.07,8.26]
[1765036722870,3.95123561,133.08,133.07,8.26]
[1765036723491,0.66,133.08,133.07,8.26]
[1765036723666,3.95123561,133.08,133.07,8.26]
[1765036723862,7.51381725,133.09,133.07,8.26]
[1765036724069,3.29123561,133.09,133.07,8.77]
[1765036724474,5.14021778,133.09,133.07,31.33232843]
[1765036725190,0.65,133.09,133.07,38.33716262]
[1765036725378,30.0744347,133.12,133.07,30.82232843]
[1765036725379,5.79021778,133.08,133.07,30.82232843]
[1765036725582,5.14021778,133.08,133.07,8.26]
[1765036727398,5.79021778,133.08,133.07,8.26]
[1765036728575,5.14021778,133.08,133.07,8.26]
[1765036733199,5.79021778,133.08,133.07,8.26]
[1765036734821,0.65,133.08,133.07,8.26]
[1765036735023,5.79021778,133.08,133.07,8.26]
[1765036739007,5.14021778,133.08,133.07,8.26]
[1765036739812,5.79021778,133.08,133.07,8.26]
[1765036742305,0.65,133.08,133.07,8.26]
[1765036742506,5.79021778,133.08,133.07,8.26]
[1765036748528,5.14021778,133.08,133.07,8.26]
[1765036748713,5.79021778,133.08,133.07,8.26]
[1765036750934,5.79021778,133.08,133.07,8.24]
[1765036751398,13.3044949,133.08,133.03,42.56402542]
[1765036751602,0.7,133.07,133.04,8.24]
[1765036751929,5.14021778,133.05,133.04,8.24]
[1765036752330,5.84021778,133.05,133.04,8.24]
[1765036752525,5.84021778,133.05,133.03,27.51684308]
[1765036752826,22.57081593,133.06,133.04,8.24]
[1765036753143,0.7,133.05,133.04,8.24]
[1765036753819,20.7,133.05,133.04,8.24]
[1765036754020,25.84021778,133.05,133.04,8.24]
[1765036757033,5.84021778,133.05,133.04,8.24]
[1765036759332,25.84021778,133.05,133.04,8.24]
[1765036762453,5.84021778,133.05,133.04,8.24]
[1765036764182,25.84021778,133.05,133.04,8.24]
[1765036764342,0.7,133.05,133.04,8.24]
[1765036764542,5.84021778,133.05,133.04,8.24]
[1765036765749,0.7,133.05,133.04,8.24]
[1765036765950,5.84021778,133.05,133.04,8.24]
[1765036770298,25.84021778,133.05,133.04,8.24]
[1765036770503,25.84021778,133.05,133.03,20.0]
[1765036770707,20.0,133.05,133.04,8.26]
[1765036771199,20.7,133.05,133.04,8.26]
[1765036771894,25.84021778,133.05,133.04,8.26]
[1765036772704,33.35618921,133.05,133.04,8.26]
[1765036774706,42.16613413,133.05,133.04,8.26]
[1765036779223,25.11880892,133.01,132.97,0.2]
[1765036779403,5.14021778,132.98,132.97,8.48]
[1765036779714,13.9501627,132.98,132.97,8.48]
[1765036779922,33.95486847,132.98,132.97,8.48]
[1765036780119,8.80994492,132.97,132.96,0.2]
[1765036780320,30.8590267,132.97,132.96,0.2]
[1765036780643,25.11880892,132.96,132.95,0.2]
[1765036780817,30.8590267,132.96,132.95,0.2]
[1765036781211,38.38008566,132.96,132.95,0.2]
[1765036781592,19.09038048,132.95,132.94,0.2]
[1765036781794,10.28043556,132.94,132.93,8.48]
[1765036782014,10.88043556,132.94,132.93,8.48]
[1765036782319,9.40994492,132.94,132.93,0.2]
[1765036782501,14.5501627,132.94,132.93,0.2]
[1765036783315,22.07235316,132.94,132.93,0.2]
[1765036783499,27.21257094,132.94,132.93,0.2]
[1765036784293,27.21257094,132.94,132.91,0.2]
[1765036784499,10.88043556,132.93,132.91,0.2]
[1765036784701,8.12219046,132.94,132.91,0.2]
[1765036784919,13.9501627,132.93,132.91,0.2]
[1765036785124,19.09038048,132.93,132.91,0.2]
[1765036785429,14.34021778,132.93,132.91,0.92]
[1765036785725,21.86297411,132.93,132.91,0.92]
[1765036786411,20.0219457,132.93,132.91,0.92]
[1765036786614,16.72275633,132.93,132.91,0.92]
[1765036786820,20.0219457,132.93,132.91,0.92]
[1765036790231,20.0219457,132.93,132.92,0.92]
[1765036790406,36.3308097,132.93,132.92,0.2]
[1765036790822,27.1308097,132.93,132.92,0.92]
[1765036791024,3.29918937,132.94,132.92,0.92]
[1765036791212,8.48,132.96,132.93,0.72]
[1765036791418,3.29918937,132.94,132.93,0.72]
[1765036794050,7.52165571,132.95,132.93,0.72]
[1765036794244,3.29918937,132.94,132.93,0.72]
[1765036796148,7.52165571,132.95,132.93,0.72]
[1765036796463,3.29918937,132.94,132.93,0.72]
[1765036801733,3.29918937,132.94,132.92,8.48]
[1765036801935,3.29918937,132.93,132.92,8.48]
[1765036802538,3.29918937,132.93,132.92,9.2]
[1765036803656,7.5217282,132.95,132.92,9.2]
[1765036803859,3.29918937,132.94,132.92,8.48]
[1765036804237,3.29918937,132.94,132.93,0.72]
[1765036805256,27.13024383,132.94,132.92,9.2]
[1765036805563,3.29918937,132.93,132.92,9.2]
[1765036805937,7.19837874,132.93,132.92,0.2]
[1765036806450,28.91873401,132.93,132.92,0.2]
[1765036806844,12.42278716,132.93,132.92,0.2]
[1765036807051,36.44149034,132.93,132.92,0.2]
[1765036809879,36.44149034,132.93,132.91,0.2]
[1765036810059,12.70913429,132.92,132.91,0.2]
[1765036812272,7.52332229,132.92,132.91,0.2]
[1765036812481,10.82251166,132.92,132.91,0.87]
[1765036812652,27.13137566,132.92,132.91,0.87]
[1765036813259,27.13137566,132.92,132.91,0.2]
[1765036813769,19.60805337,132.92,132.91,0.2]
[1765036813959,19.60805337,132.92,132.91,0.87]
[1765036814169,16.308864,132.92,132.91,0.87]
[1765036814851,7.52215106,132.95,132.91,9.15]
[1765036814852,3.29918937,132.94,132.91,9.15]
[1765036815048,3.29918937,132.94,132.92,0.67]
[1765036815481,10.82134043,132.95,132.92,0.67]
[1765036816855,32.31005651,132.96,132.92,0.67]
[1765036817182,3.29918937,132.95,132.92,0.67]
[1765036817862,10.82038188,132.96,132.92,0.67]
[1765036818272,7.52119251,132.96,132.92,0.67]
[1765036818487,7.52119251,132.96,132.92,8.19320466]
[1765036818663,27.12863808,132.97,132.92,11.49239403]
[1765036818979,16.308864,132.97,132.93,3.96918937]
[1765036819183,7.52063695,132.97,132.93,3.96918937]
[1765036819361,10.81982632,132.97,132.94,0.67]
[1765036820377,27.12869032,132.97,132.94,0.67]
[1765036823104,23.82950095,132.97,132.94,0.67]
[1765036823282,16.308864,132.97,132.95,8.28]
[1765036823711,16.308864,132.97,132.96,0.67]
[1765036830813,15.79944121,132.99,132.96,0.67]
[1765036831007,3.29918937,132.98,132.96,0.67]
[1765036831795,7.51944121,132.99,132.96,0.67]
[1765036831994,10.81863058,132.99,132.96,0.67]
[1765036832199,3.29918937,132.98,132.96,0.67]
[1765036834108,3.29918937,132.98,132.95,8.28]
[1765036834109,3.29918937,132.97,132.95,8.28]
[1765036834292,3.29918937,132.96,132.93,0.67]
[1765036834497,3.29918937,132.95,132.93,0.67]
[1765036835905,3.29918937,132.95,132.92,8.95]
[1765036835906,3.29918937,132.94,132.92,8.95]
[1765036836105,19.60805337,132.93,132.92,8.28]
[1765036837825,19.60805337,132.93,132.92,8.95]
[1765036838035,16.308864,132.93,132.92,8.95]
[1765036839114,19.60805337,132.93,132.92,8.95]
[1765036844845,27.73082672,132.93,132.91,0.2]
[1765036845022,3.29918937,132.92,132.91,8.48]
[1765036845223,3.89918937,132.92,132.91,0.2]
[1765036846330,5.75578247,132.92,132.91,0.2]
[1765036846648,29.58796876,132.92,132.91,0.2]
[1765036848816,38.39791368,132.92,132.91,0.2]
[1765036849226,22.08904968,132.92,132.91,0.2]
[1765036849454,8.80994492,132.91,132.9,0.2]
[1765036849747,14.56572739,132.91,132.9,0.2]
[1765036851246,22.08961573,132.91,132.9,0.2]
[1765036854850,21.48961573,132.91,132.9,0.2]
[1765036856046,28.98853481,132.91,132.9,0.9]
[1765036856820,16.308864,132.91,132.9,0.9]
[1765036857025,12.67921064,132.92,132.9,0.9]
[1765036857241,7.52342817,132.92,132.91,0.7]
[1765036858562,12.67921064,132.92,132.91,0.7]
[1765036858869,5.15578247,132.92,132.91,0.7]
[1765036861551,12.67910476,132.92,132.9,0.86]
[1765036862344,12.67910476,132.92,132.91,0.66]
[1765036862548,5.15578247,132.92,132.91,0.66]
[1765036863284,7.52049334,132.97,132.91,13.33925398]
[1765036863569,21.46464647,132.94,132.91,0.66]
[1765036863739,21.46464647,132.94,132.92,0.66]
[1765036864057,16.308864,132.94,132.92,0.66]
[1765036871685,16.308864,132.94,132.92,8.94]
[1765036873485,16.308864,132.94,132.93,0.68]
[1765036879082,16.308864,132.96,132.93,0.68]
[1765036879489,7.52065379,132.97,132.93,5.83578247]
[1765036880011,12.67643626,132.97,132.94,0.68]
[1765036880503,16.308864,132.98,132.94,5.83578247]
[1765036880504,21.46464647,132.98,132.94,5.83578247]
[1765036880706,7.51936503,132.99,132.95,5.15578247]
[1765036881011,12.6751475,132.99,132.96,8.28]
[1765036881212,7.51936503,132.99,132.97,0.68]
[1765036881405,5.15578247,132.99,132.97,0.68]
[1765036881586,28.98349268,133.0,132.97,0.68]
[1765036882897,5.15578247,133.01,132.97,5.83578247]
[1765036883198,28.98265366,133.02,132.97,13.35621211]
[1765036883412,28.98265366,133.02,132.98,0.68]
[1765036884215,28.98265366,133.02,132.98,5.83578247]
[1765036884412,28.98265366,133.02,132.99,0.68]
[1765036885805,29.58265366,133.02,132.99,0.68]
[1765036885992,23.82687119,133.02,132.99,0.68]
[1765036886193,28.98265366,133.02,132.99,0.68]
[1765036886593,28.98265366,133.02,133.0,8.26]
[1765036887088,28.98265366,133.02,133.0,0.68]
[1765036890015,16.308864,133.02,133.0,0.68]
[1765036893003,7.51722627,133.03,133.0,5.83578247]
[1765036893342,23.82553938,133.04,133.0,13.35453231]
[1765036893500,23.82553938,133.04,133.01,0.68]
[1765036894821,113.14908075,133.06,133.02,5.15578247]
[1765036894822,7.61564865,133.06,133.02,5.15578247]
[1765036895028,29.08029512,133.06,133.03,8.26]
[1765036895394,29.08029512,133.06,133.04,0.68]
[1765036896119,29.08029512,133.06,133.02,8.26]
[1765036896120,5.75578247,133.05,133.02,8.26]
[1765036896317,21.46464647,133.03,132.99,8.26]
[1765036896500,5.15578247,133.01,132.99,8.26]
[1765036896702,5.15578247,133.0,132.96,5.15578247]
[1765036897029,5.15578247,133.0,132.97,8.94]
[1765036897425,5.15578247,133.0,132.98,0.68]
[1765036898237,7.51823171,133.01,132.98,0.68]
[1765036898436,5.15578247,133.0,132.98,0.68]
[1765036898626,5.15578247,133.0,132.98,8.26]
[1765036899338,7.51823171,133.01,132.98,8.95]
[1765036899529,5.15578247,133.0,132.99,0.69]
[1765036899734,5.15578247,133.0,132.98,8.95]
[1765036900344,5.15578247,133.0,132.99,0.69]
[1765036900641,12.67401418,133.01,132.99,0.69]
[1765036904252,16.308864,133.02,132.99,0.69]
[1765036904449,7.51597143,133.05,132.99,13.36497369]
[1765036904659,21.46464647,133.04,132.99,13.36497369]
[1765036904868,21.46464647,133.04,133.0,0.69]
[1765036905365,12.67288387,133.03,133.0,0.69]
[1765036905665,5.15578247,133.02,133.01,8.26]
[1765036906440,5.15578247,133.02,133.0,8.26]
[1765036906770,8.1171014,133.03,133.0,8.95]
[1765036906771,5.15578247,133.01,133.0,8.95]
[1765036907663,12.67355988,133.02,133.0,8.95]
[1765036908384,10.81172008,133.02,133.0,8.95]
[1765036908557,19.60280667,133.01,132.98,0.69]
[1765036908866,3.29394267,133.0,132.99,8.26]
[1765036909045,19.60280667,133.01,132.99,8.26]
[1765036909250,19.60280667,133.01,133.0,0.69]
[1765036909451,19.60280667,133.01,132.99,8.95]
[1765036909664,27.12111714,133.01,132.99,8.95]
[1765036910161,23.82717447,133.01,132.99,8.26]
[1765036910338,3.29394267,133.0,132.99,8.26]
[1765036911067,27.72111714,133.01,132.99,8.26]
[1765036911752,27.12111714,133.01,132.99,8.95]
[1765036912886,3.29394267,133.0,132.99,8.26]
[1765036913191,7.51782246,133.02,132.99,8.26]
[1765036913390,23.82668646,133.02,132.99,8.26]
[1765036913786,23.82668646,133.02,133.0,0.69]
[1765036914888,16.308864,133.02,133.0,0.69]
[1765036915189,10.81051104,133.04,133.0,0.69]
[1765036915378,27.11937504,133.04,133.0,0.69]
[1765036918695,3.29394267,133.03,133.0,0.69]
[1765036918878,10.8111518,133.03,133.0,0.69]
[1765036919789,3.29394267,133.02,133.0,0.69]
[1765036919976,3.29394267,133.02,132.99,8.93]
[1765036920172,3.29394267,133.02,133.0,0.67]
[1765036921405,10.81176649,133.02,133.0,0.67]
[1765036923701,10.81176649,133.02,132.99,8.26]
[1765036923702,3.29394267,133.01,132.99,8.26]
[1765036923887,3.29394267,133.01,132.99,8.93]
[1765036924203,3.29394267,133.0,132.97,8.26]
[1765036924420,3.29394267,132.99,132.98,0.67]
[1765036924587,3.29394267,133.0,132.98,0.67]
[1765036925106,10.81288422,133.0,132.97,8.93]
[1765036925303,7.51826188,133.01,132.98,0.67]
[1765036925605,19.60280667,133.02,132.98,0.67]
[1765036926102,16.308864,133.02,132.98,3.96394267]
[1765036926309,104.8,133.03,132.99,3.29394267]
[1765036926507,104.8,133.03,132.99,3.96394267]
[1765036926809,104.8,133.03,133.0,0.67]
[1765036926996,104.8,133.03,133.01,8.26]
[1765036927494,104.8,133.03,133.01,8.93]
[1765036928006,16.308864,133.04,133.02,0.67]
[1765036928513,3.39394267,133.06,133.02,0.67]
[1765036928705,16.408864,133.06,133.02,3.96394267]
[1765036929115,16.408864,133.06,133.03,0.68]
[1765036929408,16.408864,133.06,133.03,8.19704107]
[1765036929811,16.408864,133.06,133.04,0.68]
[1765036930012,16.408864,133.06,133.05,8.26]
[1765036930399,16.408864,133.06,133.05,8.94]
[1765036930597,0.1,133.06,133.05,8.94]
[1765036931109,3.39394267,133.06,133.05,8.94]
[1765036932817,0.1,133.06,133.05,8.94]
[1765036933411,3.39394267,133.06,133.05,8.94]
[1765036934993,0.1,133.06,133.05,8.94]
[1765036935309,0.1,133.06,133.05,16.45597143]
[1765036935489,0.1,133.06,133.05,8.94]
[1765036935691,3.39394267,133.06,133.05,8.94]
[1765036936516,0.1,133.06,133.05,8.94]
[1765036937395,0.1,133.06,133.05,16.45597143]
[1765036937801,0.1,133.06,133.05,19.7499141]
[1765036938023,0.1,133.06,133.05,28.55985902]
[1765036938319,13.87577068,133.14,133.05,28.55985902]
[1765036938320,0.1,133.26,133.17,0.99999999]
[1765036938503,0.1,133.26,133.18,8.32]
[1765036938705,0.78,133.26,133.21,16.308864]
[1765036938905,0.78,133.26,133.22,11.61394267]
[1765036939117,0.1,133.26,133.23,3.29394267]
[1765036939610,0.1,133.26,133.25,3.29394267]
[1765036939816,0.1,133.26,133.25,11.61394267]
[1765036940616,0.1,133.26,133.25,8.32]
[1765036940829,0.1,133.26,133.23,8.80994492]
[1765036941048,0.78,133.26,133.23,3.29394267]
[1765036941193,0.78,133.26,133.24,8.32]
[1765036943441,0.78,133.26,133.23,7.50580432]
[1765036943442,8.59142535,133.26,133.23,7.50580432]
[1765036943623,7.81142535,133.25,133.24,8.32]
[1765036943821,0.68,133.25,133.19,30.87277242]
[1765036944018,8.49142535,133.25,133.2,16.13142535]
[1765036944720,8.49142535,133.25,133.21,7.50674734]
[1765036945827,7.81142535,133.24,133.2,7.5075075]
[1765036946026,7.81142535,133.23,133.22,8.32]
[1765036946333,8.49142535,133.23,133.2,7.5075075]
[1765036946505,8.49142535,133.22,133.21,8.32]
[1765036946705,7.81142535,133.22,133.21,8.32]
[1765036947230,8.49142535,133.22,133.21,8.32]
[1765036947433,7.81142535,133.22,133.21,8.32]
[1765036949224,8.49142535,133.22,133.18,7.50863493]
[1765036949427,8.49142535,133.22,133.19,8.32]
[1765036949428,7.81142535,133.22,133.19,8.32]
[1765036949849,0.68,133.23,133.19,8.32]
[1765036950058,8.49142535,133.23,133.19,8.32]
[1765036950224,7.81142535,133.22,133.19,15.82765164]
[1765036950829,7.60415532,133.26,133.19,15.82765164]
[1765036950830,0.78,133.26,133.2,16.62137027]
[1765036951028,0.1,133.26,133.22,7.81142535]
[1765036951249,0.1,133.26,133.23,16.13142535]
[1765036951961,0.1,133.26,133.23,8.32]
[1765036952325,0.78,133.26,133.23,8.32]
[1765036952923,0.1,133.26,133.23,15.8255391]
[1765036953126,0.1,133.26,133.23,23.63696445]
[1765036954136,0.1,133.26,133.24,7.81142535]
[1765036954837,0.1,133.26,133.23,15.8255391]
[1765036955039,0.1,133.26,133.25,7.50469043]
[1765036956841,0.1,133.26,133.25,15.31611578]
[1765036959366,0.1,133.26,133.25,24.1260607]
[1765036960460,1e-08,133.26,133.25,24.87652974]
[1765036962142,1e-08,133.26,133.25,17.06510439]
[1765036962350,1e-08,133.26,133.25,20.34255762]
[1765036962968,1e-08,133.26,133.25,17.06510439]
[1765036963263,1e-08,133.26,133.25,28.64255762]
[1765036964474,1e-08,133.26,133.25,20.34255762]
[1765036964675,1e-08,133.26,133.25,44.95142162]
[1765036966569,1e-08,133.26,133.25,33.37396839]
[1765036966850,1e-08,133.26,133.25,44.20095258]
[1765036967259,0.72000001,133.26,133.25,7.50469043]
[1765036967466,1e-08,133.26,133.25,15.80469043]
[1765036968263,1e-08,133.26,133.25,19.08214366]
[1765036968465,1e-08,133.26,133.25,20.92947315]
[1765036968865,0.72000001,133.26,133.25,15.80469043]
[1765036969279,0.72000001,133.26,133.25,20.92947315]
[1765036969586,1e-08,133.26,133.25,20.92947315]
[1765036970184,1e-08,133.26,133.25,29.73941807]
[1765036970961,1e-08,133.26,133.25,7.50469043]
[1765036971267,1e-08,133.26,133.25,20.92947315]
[1765036971494,1e-08,133.26,133.25,15.80469043]
[1765036972415,1e-08,133.26,133.25,29.73941807]
[1765036973817,1e-08,133.26,133.25,15.80469043]
[1765036974613,1e-08,133.26,133.25,20.92947315]
[1765036974786,1e-08,133.26,133.25,12.62947315]
[1765036974990,0.66000001,133.26,133.25,24.608864]
[1765036975613,1e-08,133.26,133.25,24.608864]
[1765036977324,1e-08,133.26,133.25,32.11355443]
[1765036977632,1e-08,133.26,133.25,15.80469043]
[1765036977633,0.66000001,133.26,133.25,15.80469043]
[1765036978492,1e-08,133.26,133.25,15.80469043]
[1765036979914,0.66000001,133.26,133.25,15.80469043]
[1765036980248,1e-08,133.26,133.25,15.80469043]
[1765036980427,0.66000001,133.26,133.25,37.23833715]
[1765036980740,1e-08,133.26,133.25,37.23833715]
[1765036981324,1e-08,133.26,133.25,15.80469043]
[1765036981530,0.66000001,133.26,133.25,15.80469043]
[1765036982146,0.66000001,133.26,133.25,8.3]
[1765036982946,1e-08,133.26,133.25,8.3]
[1765036983127,0.66000001,133.26,133.25,8.3]
[1765036984116,0.66000001,133.26,133.25,15.80469043]
[1765036985221,0.66000001,133.26,133.25,8.3]
[1765036985949,1e-08,133.26,133.25,13.42478272]
[1765036986119,1e-08,133.26,133.25,22.23472764]
[1765036987431,1e-08,133.26,133.25,29.73941807]
[1765036991141,0.67000001,133.26,133.25,20.92947315]
[1765036991349,1e-08,133.26,133.25,20.92947315]
[1765036991721,1e-08,133.26,133.25,7.50469043]
[1765036991722,0.67000001,133.26,133.25,7.50469043]
[1765036991924,0.67000001,133.26,133.25,20.92947315]
[1765036992437,0.67000001,133.26,133.25,15.80469043]
[1765036992947,1e-08,133.26,133.25,20.92947315]
[1765036995926,1e-08,133.26,133.25,29.73941807]
[1765036996425,1e-08,133.26,133.25,46.04828207]
[1765036996626,1e-08,133.26,133.25,46.79875111]
[1765036997955,0.67,133.32,133.28,16.308864]
[1765036998158,0.67,133.32,133.3,5.12478272]
[1765036998335,0.67,133.32,133.31,8.3]
[1765036999053,0.67,133.32,133.31,13.42478272]
[1765036999349,23.80686159,133.37,133.31,13.42478272]
[1765036999350,0.67,133.34,133.31,13.42478272]
[1765036999551,0.67,133.34,133.32,5.12478272]
[1765036999759,0.67,133.34,133.33,15.8001875]
[1765037002749,0.67,133.34,133.33,20.92497022]
[1765037005239,0.67,133.34,133.33,15.8001875]
[1765037007567,0.67,133.34,133.33,20.92497022]
[1765037007778,0.67,133.35,133.33,15.8001875]
[1765037008083,0.67,133.35,133.33,20.92497022]
[1765037008965,0.67,133.35,133.33,15.8001875]
[1765037009150,0.67,133.35,133.32,5.12478272]
[1765037009151,5.79478272,133.35,133.34,8.28]
[1765037009680,5.79478272,133.35,133.34,6.84]
[1765037009843,18.41889141,133.35,133.33,8.28]
[1765037010047,5.79478272,133.34,133.33,8.28]
[1765037010871,13.29440773,133.34,133.33,8.28]
[1765037011180,8.16962501,133.34,133.32,8.28]
[1765037011348,0.67,133.33,133.29,7.50233029]
[1765037011549,5.12478272,133.32,133.3,8.28]
[1765037011757,5.79478272,133.33,133.3,8.28]
[1765037012061,0.67,133.32,133.3,8.28]
[1765037012272,0.67,133.32,133.29,12.12711301]
[1765037012450,0.67,133.32,133.3,8.28]
[1765037012656,0.67,133.32,133.31,8.28]
[1765037013474,0.67,133.35,133.31,21.55609544]
[1765037013675,0.67,133.35,133.32,5.12478272]
[1765037013881,5.79478272,133.35,133.31,16.43131272]
[1765037014066,5.79478272,133.35,133.31,21.55609544]
[1765037014263,0.67,133.34,133.31,21.55609544]
[1765037014678,5.79478272,133.34,133.31,15.78131272]
[1765037014982,5.79478272,133.34,133.31,7.50131272]
[1765037015182,0.67,133.33,133.32,8.28]
[1765037016183,0.67,133.33,133.32,15.78075007]
[1765037016878,0.67,133.33,133.32,7.50075007]
[1765037017085,0.67,133.33,133.32,15.78075007]
[1765037017486,0.67,133.33,133.31,7.50121735]
[1765037017659,5.79478272,133.33,133.32,8.28]
[1765037018478,13.29516654,133.33,133.26,19.40998127]
[1765037018678,5.12478272,133.28,133.24,14.58472764]
[1765037018982,5.12478272,133.25,133.22,7.505829]
[1765037019192,5.12478272,133.25,133.23,8.28]
[1765037019479,16.308864,133.3,133.23,8.28]
[1765037019480,5.82478272,133.26,133.23,8.28]
[1765037019691,5.82478272,133.26,133.24,7.50525367]
[1765037020186,5.82478272,133.28,133.24,12.63003639]
[1765037020565,0.7,133.27,133.24,13.30003639]
[1765037020973,5.12478272,133.26,133.23,7.50570519]
[1765037021173,5.12478272,133.25,133.24,8.3]
[1765037021558,5.82478272,133.25,133.24,8.3]
[1765037021762,5.82478272,133.25,133.23,7.50570519]
[1765037021763,0.7,133.25,133.23,7.50570519]
[1765037021982,5.82478272,133.25,133.24,8.3]
[1765037022790,0.7,133.25,133.24,8.3]
[1765037027907,5.82478272,133.25,133.24,8.3]
[1765037028383,3.98211244,133.25,133.24,8.3]
[1765037028979,3.98211244,133.25,133.24,8.28]
[1765037030403,3.98211244,133.25,133.21,7.506849]
[1765037030404,0.7,133.25,133.21,7.506849]
[1765037030706,3.28211244,133.23,133.21,7.506849]
[1765037030885,3.28211244,133.23,133.22,8.28]
[1765037031091,3.95211244,133.23,133.22,8.28]
[1765037032384,0.67,133.23,133.22,8.28]
[1765037033801,3.95211244,133.23,133.22,8.28]
[1765037034182,3.95211244,133.23,133.2,7.50745218]
[1765037034376,0.67,133.22,133.21,8.28]
[1765037034579,3.95211244,133.23,133.21,8.28]
[1765037035813,0.67,133.22,133.2,7.50745218]
[1765037036009,0.67,133.22,133.21,8.28]
[1765037036010,3.95211244,133.22,133.21,8.28]
[1765037036385,3.95211244,133.22,133.19,7.50797144]
[1765037036613,3.95211244,133.22,133.2,8.28]
[1765037037588,0.67,133.21,133.19,7.50797144]
[1765037037792,0.67,133.21,133.2,8.28]